fUST/lending_fUST_20240105
["ID","MTS","AMOUNT","RATE_DAILY","PERIOD"]
[310276825,1704455442402,-501.8619898,0.00036423,7]
[310276826,1704455442411,-500.0,0.00036423,7]
[310276827,1704455442420,-633.08471411,0.00036423,7]
[310276828,1704455442429,-328.74131593,0.00036423,7]
[310276863,1704455443824,-1202.629994,0.00036352,3]
[310277093,1704456632131,-154.81422293,0.00032646,5]
[310277094,1704456632141,-154.81422293,0.00032647,4]
[310277095,1704456632150,-171.96281558,0.00032656,2]
[310277096,1704456632160,-163.996451,0.00033692,2]
[310277097,1704456632169,-300.0,0.0003378,2]
[310277098,1704456632178,-1000.0,0.00034,7]
[310277099,1704456632187,-2000.0,0.0003452,2]
[310277100,1704456632196,-1495.84028,0.00034521,2]
[310277101,1704456632205,-500.0,0.000352,15]
[310277102,1704456632215,-1000.0,0.00035367,10]
[310277103,1704456632224,-167.23854361,0.00035367,2]
[310277104,1704456632233,-181.87854,0.00035616,120]
[310277105,1704456632243,-427.0,0.00035781,2]
[310277106,1704456632252,-1495.84028,0.00035798,2]
[310277107,1704456632264,-12206.9372436,0.000358,5]
[310277108,1704456632273,-154.81422293,0.000359,4]
[310277109,1704456632282,-500.0,0.00036113,7]
[310277110,1704456632408,-500.0,0.00036117,7]
[310277111,1704456632417,-533.48335192,0.00036117,7]
[310277112,1704456632426,-17624.0856506,0.00036118,2]
[310277113,1704456632435,-1835.35714368,0.00036118,2]
[310277114,1704456632444,-4346.28240472,0.00036118,7]
[310277153,1704456641207,-545.89540644,0.00036118,7]
[310277206,1704456645962,-4699.05918759,0.000358,5]
[310277207,1704456645972,-107.82218884,0.00036118,7]
[310277208,1704456645983,-1479.297339,0.00036118,2]
[310277209,1704456645992,-680.78693481,0.00036118,2]
[310277210,1704456646006,-13111.89567207,0.00036189,3]
[310277530,1704457841493,-154.81422293,0.00032545,5]
[310277531,1704457841504,-154.81422293,0.00032546,4]
[310277532,1704457841514,-692.95059749,0.00032561,2]
[310277615,1704457843137,-307.04940251,0.00032561,2]
[310277616,1704457843147,-445.84580549,0.000345,2]
[310277657,1704458593351,250.0,0.00027,7]
[310277662,1704458688494,2108.70145738,0.00020602,2]
[310277669,1704458756262,200.0,0.00020602,2]
[310277670,1704458757046,891.29854262,0.00020602,2]
[310277673,1704458785717,154.79876161,0.000206,4]
[310277674,1704458809581,3827.77185463,0.000206,2]
[310277675,1704458820303,342.0768725,0.000206,2]
[310277676,1704458822442,154.79876161,0.000206,2]
[310277677,1704458825550,3827.77185463,0.000206,2]
[310277678,1704458833538,294.18967876,0.000206,2]
[310277684,1704459017316,200.0,0.00022658,7]
[310277685,1704459018111,280.0,0.00024924,7]
[310277758,1704459032319,-2009.85231793,0.00020597,2]
[310277880,1704459038509,-2796.09955699,0.00020597,2]
[310277881,1704459038521,-154.81422293,0.00020597,2]
[310277883,1704459038530,-2699.94240879,0.00020598,5]
[310277885,1704459038539,-1148.72101938,0.000206,2]
[310277887,1704459038548,-342.0768725,0.000206,2]
[310277888,1704459038557,-156.733779,0.000206,2]
[310277897,1704459038729,-3827.77185463,0.000206,2]
[310277898,1704459038742,-30.54612022,0.00020602,2]
[310277899,1704459038757,-169.45387978,0.00020602,2]
[310277900,1704459038768,-3003.59607844,0.00025,2]
[310277901,1704459038778,-154.81422293,0.00027415,4]
[310277902,1704459038787,-391.0,0.00027416,15]
[310277904,1704459038797,-200.0,0.00030158,15]
[310277906,1704459038807,-348.0,0.00030158,15]
[310277907,1704459038821,-167.283341,0.00032902,2]
[310277909,1704459038830,-200.0,0.00033173,15]
[310277910,1704459038840,-200.0,0.00033173,15]
[310277911,1704459038850,-368.0,0.00033173,15]
[310277912,1704459038859,-178.291093,0.00033618,2]
[310277913,1704459038869,-178.291093,0.00033618,2]
[310277914,1704459038878,-1000.0,0.00034053,7]
[310277915,1704459038888,-161.666823,0.00034054,2]
[310277916,1704459038898,-897.504168,0.00034521,2]
[310277917,1704459038908,-431.26325693,0.00035,2]
[310277919,1704459038918,-1000.0,0.000352,15]
[310277921,1704459038928,-152.63116091,0.00035367,2]
[310277922,1704459038938,-164.21031291,0.00035367,2]
[310277924,1704459038949,-249.17311201,0.00035367,2]
[310277926,1704459038958,-384.0,0.00035452,2]
[310277927,1704459038968,-181.87854,0.00035616,120]
[310277929,1704459038977,-155.0,0.0003577,2]
[310277930,1704459038987,-897.504168,0.00035798,2]
[310277931,1704459038997,-10704.16630836,0.000358,5]
[310277932,1704459039007,-235.45206444,0.00035844,2]
[310277933,1704459039017,-45967.84,0.00035874,3]
[310277934,1704459039026,-7436.0596032,0.0003588,2]
[310277935,1704459039036,-11712.17726605,0.00035884,3]
[310277982,1704459042465,-2000.0,0.000345,2]
[310277984,1704459042475,-35025.38715025,0.00035884,3]
[310277987,1704459042487,-7436.0596032,0.00035884,3]
[310278066,1704459043411,-987.7859805,0.00035884,3]
[310278068,1704459043422,-154.84515485,0.00035892,4]
[310278070,1704459043432,-7020.37840216,0.00035892,4]
[310278071,1704459043442,-638.08762863,0.00035893,4]
[310278072,1704459043453,-28926.76,0.00035894,3]
[310278073,1704459043463,-154.81422293,0.00035921,4]
[310278074,1704459043473,-722.22513102,0.00035922,4]
[310278075,1704459043482,-999.60243741,0.00035933,2]
[310278081,1704459043504,-17347.69,0.00035933,7]
[310278084,1704459043515,-500.0,0.00035933,7]
[310278086,1704459043524,-500.0,0.00035933,7]
[310278089,1704459043533,-155.18273889,0.00035942,4]
[310278091,1704459043545,-875.2178296,0.00035942,4]
[310278093,1704459043555,-154.81422293,0.00035942,4]
[310278095,1704459043565,-500.0,0.00035943,7]
[310278096,1704459043576,-477.78825012,0.00035943,2]
[310278098,1704459043586,-500.0,0.00035943,2]
[310278100,1704459043596,-509.74705932,0.00035943,2]
[310278102,1704459043605,-500.0,0.00035943,2]
[310278103,1704459043614,-500.39377317,0.00035944,2]
[310278105,1704459043624,-500.0,0.00035944,7]
[310278107,1704459043633,-500.0,0.00035944,2]
[310278109,1704459043643,-225.50458298,0.00035944,2]
[310278111,1704459043652,-500.0,0.00035944,2]
[310278112,1704459043661,-500.0,0.00035944,7]
[310278114,1704459043670,-1339.82,0.00035944,7]
[310278116,1704459043680,-500.0,0.00035944,7]
[310278118,1704459043689,-500.0,0.00035944,7]
[310278120,1704459043699,-501.11169799,0.00035944,7]
[310278121,1704459043708,-500.0,0.00035944,7]
[310278122,1704459043722,-1000.0,0.00035944,5]
[310278124,1704459043733,-500.0,0.00035944,7]
[310278126,1704459043742,-500.0,0.00035944,7]
[310278127,1704459043752,-500.0,0.00035944,7]
[310278128,1704459043764,-500.0,0.00035944,7]
[310278130,1704459043774,-500.0,0.00035944,7]
[310278132,1704459043783,-594.91,0.00035944,7]
[310278133,1704459043792,-209.64287012,0.00035944,7]
[310278135,1704459043802,-1048.45,0.00035944,7]
[310278137,1704459043811,-500.0,0.00035944,7]
[310278139,1704459043820,-3018.36,0.00035944,7]
[310278141,1704459043829,-2383.79,0.00035944,7]
[310278142,1704459043838,-500.0,0.00035944,7]
[310278144,1704459043847,-500.0,0.00035944,7]
[310278146,1704459043857,-582.89,0.00035944,7]
[310278148,1704459043866,-500.0,0.00035944,7]
[310278150,1704459043875,-500.0,0.00035944,7]
[310278151,1704459043885,-500.0,0.00035944,7]
[310278153,1704459043894,-583.89,0.00035944,7]
[310278154,1704459043903,-501.82449506,0.00035944,7]
[310278156,1704459043912,-500.0,0.00035944,7]
[310278158,1704459043921,-3608.46,0.00035944,7]
[310278159,1704459043931,-510.06108715,0.00035944,7]
[310278161,1704459043941,-500.0,0.00035944,7]
[310278163,1704459043950,-500.0,0.00035944,7]
[310278164,1704459043960,-500.0,0.00035944,7]
[310278166,1704459043970,-500.0,0.00035944,7]
[310278167,1704459043980,-506.2561897,0.00035944,7]
[310278169,1704459043989,-500.0,0.00035944,7]
[310278171,1704459043998,-518.53713412,0.00035944,7]
[310278172,1704459044008,-500.0,0.00035944,7]
[310278173,1704459044017,-500.0,0.00035944,7]
[310278174,1704459044027,-500.0,0.00035944,7]
[310278175,1704459044037,-500.0,0.00035944,7]
[310278176,1704459044046,-500.0,0.00035944,7]
[310278177,1704459044056,-518.76446667,0.00035944,7]
[310278178,1704459044066,-500.0,0.00035944,7]
[310278179,1704459044076,-500.0,0.00035944,7]
[310278180,1704459044086,-1222.67,0.00035944,7]
[310278181,1704459044096,-500.0,0.00035944,7]
[310278182,1704459044105,-500.0,0.00035944,2]
[310278183,1704459044115,-534.71928868,0.00035944,7]
[310278184,1704459044125,-153.996853,0.00035944,2]
[310278185,1704459044135,-153.996853,0.00035944,2]
[310278186,1704459044145,-153.996853,0.00035944,2]
[310278187,1704459044155,-153.996853,0.00035944,2]
[310278188,1704459044165,-4850.40915148,0.00035952,2]
[310278189,1704459044174,-154.82968734,0.00035952,2]
[310278190,1704459044184,-153.996853,0.00035953,2]
[310278191,1704459044194,-153.996853,0.00035953,2]
[310278192,1704459044204,-468.93451344,0.00035953,2]
[310278193,1704459044213,-160.76041854,0.00035953,2]
[310278194,1704459044223,-1677.02892193,0.00035953,2]
[310278195,1704459044233,-944.51958651,0.00035953,4]
[310278196,1704459044243,-3000.0,0.00035964,2]
[310278197,1704459044253,-500.0,0.00035964,7]
[310278198,1704459044266,-500.0,0.00035964,7]
[310278199,1704459044275,-500.0,0.00035964,7]
[310278200,1704459044285,-500.0,0.00035964,7]
[310278201,1704459044294,-354.64078879,0.00035964,7]
[310278202,1704459044304,-500.0,0.00035964,7]
[310278203,1704459044314,-500.0,0.00035964,7]
[310278204,1704459044323,-505.77352148,0.00035964,7]
[310278205,1704459044333,-500.4378257,0.00035964,7]
[310278206,1704459044343,-500.0,0.00035964,7]
[310278207,1704459044352,-501.9154319,0.00035964,7]
[310278208,1704459044362,-1581.41,0.00035964,7]
[310278209,1704459044371,-500.0,0.00035964,7]
[310278210,1704459044381,-500.0,0.00035964,7]
[310278211,1704459044391,-500.0,0.00035964,7]
[310278212,1704459044401,-439.22954614,0.00035964,7]
[310278213,1704459044411,-500.0,0.00035964,7]
[310278214,1704459044421,-500.0,0.00035964,7]
[310278215,1704459044431,-500.0,0.00035964,7]
[310278216,1704459044440,-498.44715225,0.00035964,7]
[310278217,1704459044450,-574.59066722,0.00035964,7]
[310278218,1704459044459,-500.0,0.00035964,7]
[310278219,1704459044469,-500.0,0.00035964,7]
[310278220,1704459044478,-500.0,0.00035964,7]
[310278221,1704459044488,-55436.15,0.00035964,3]
[310278222,1704459044499,-532.45,0.00035964,7]
[310278223,1704459044510,-500.0,0.00035964,7]
[310278224,1704459044521,-500.0,0.00035964,7]
[310278225,1704459044530,-8443.55,0.00035964,7]
[310278226,1704459044539,-500.0,0.00035964,7]
[310278227,1704459044548,-500.0,0.00035964,7]
[310278228,1704459044557,-500.0,0.00035964,7]
[310278229,1704459044566,-500.0,0.00035964,7]
[310278230,1704459044575,-500.0,0.00035964,7]
[310278231,1704459044584,-500.0,0.00035964,7]
[310278232,1704459044593,-500.0,0.00035964,7]
[310278233,1704459044602,-500.0,0.00035964,7]
[310278234,1704459044611,-500.0,0.00035964,7]
[310278235,1704459044621,-500.0,0.00035964,7]
[310278236,1704459044631,-500.0,0.00035964,7]
[310278237,1704459044641,-500.0,0.00035964,7]
[310278238,1704459044650,-500.0,0.00035964,7]
[310278239,1704459044660,-12375.52,0.00035964,7]
[310278240,1704459044670,-500.0,0.00035964,7]
[310278241,1704459044679,-500.0,0.00035964,7]
[310278242,1704459044688,-500.0,0.00035964,7]
[310278243,1704459044698,-500.0,0.00035964,7]
[310278244,1704459044707,-500.0,0.00035964,7]
[310278245,1704459044717,-500.0,0.00035964,7]
[310278246,1704459044726,-1494.5,0.00035964,7]
[310278247,1704459044735,-500.0,0.00035964,7]
[310278248,1704459044745,-734.91,0.00035964,7]
[310278249,1704459044754,-500.0,0.00035964,7]
[310278250,1704459044765,-500.0,0.00035964,7]
[310278251,1704459044774,-500.0,0.00035964,7]
[310278252,1704459044783,-4330.13,0.00035964,7]
[310278253,1704459044793,-153.996853,0.00035964,2]
[310278254,1704459044803,-153.996853,0.00035964,2]
[310278255,1704459044813,-154.8915759,0.00035974,4]
[310278256,1704459044823,-520.2185,0.00035974,4]
[310278257,1704459044832,-154.8915759,0.00035974,4]
[310278258,1704459044842,-1576.20853557,0.00035974,4]
[310278259,1704459044852,-369.22605694,0.00035974,4]
[310278260,1704459044861,-607.99241737,0.00035974,4]
[310278261,1704459044871,-2031.60443603,0.00035974,4]
[310278262,1704459044880,-285.30351426,0.00035974,4]
[310278263,1704459044889,-500.0,0.00035974,7]
[310278264,1704459044899,-500.0,0.00035974,7]
[310278265,1704459044908,-500.0,0.00035974,7]
[310278266,1704459044930,-500.0,0.00035974,7]
[310278267,1704459044940,-500.0,0.00035974,7]
[310278268,1704459044949,-500.0,0.00035974,7]
[310278269,1704459044959,-500.0,0.00035974,7]
[310278270,1704459044969,-340.64680927,0.00035974,7]
[310278271,1704459044979,-13673.02936715,0.00035975,4]
[310278272,1704459044989,-153.996853,0.00035975,2]
[310278273,1704459044999,-153.996853,0.00035975,2]
[310278274,1704459045009,-500.0,0.00035983,7]
[310278275,1704459045018,-500.0,0.00035983,7]
[310278276,1704459045028,-500.0,0.00035983,7]
[310278277,1704459045038,-452.35672464,0.00035983,4]
[310278278,1704459045047,-483.43686093,0.00035983,4]
[310278279,1704459045057,-500.0,0.00035983,4]
[310278280,1704459045067,-500.0,0.00035983,4]
[310278281,1704459045076,-403.01457663,0.00035983,4]
[310278282,1704459045086,-201.66919508,0.00035983,4]
[310278283,1704459045096,-500.0,0.00035983,4]
[310278284,1704459045105,-500.0,0.00035983,4]
[310278285,1704459045115,-500.0,0.00035983,4]
[310278286,1704459045125,-500.0,0.00035983,4]
[310278287,1704459045134,-500.0,0.00035983,7]
[310278288,1704459045143,-632.31029449,0.00035983,7]
[310278289,1704459045154,-500.0,0.00035983,4]
[310278290,1704459045163,-1296.28,0.00035984,7]
[310278291,1704459045173,-6988.09,0.00035984,7]
[310278292,1704459045183,-3131.06855296,0.00035984,2]
[310278293,1704459045194,-2068.53,0.00035984,7]
[310278294,1704459045204,-500.0,0.00035984,7]
[310278295,1704459045214,-501.26713732,0.00035984,7]
[310278296,1704459045224,-500.0,0.00035984,7]
[310278297,1704459045234,-1582.99,0.00035984,7]
[310278298,1704459045243,-500.0,0.00035984,7]
[310278299,1704459045253,-500.0,0.00035984,7]
[310278300,1704459045264,-524.07030343,0.00035984,7]
[310278301,1704459045274,-500.0,0.00035984,7]
[310278302,1704459045284,-500.0,0.00035984,7]
[310278303,1704459045293,-814.63,0.00035984,7]
[310278304,1704459045303,-500.0,0.00035984,7]
[310278305,1704459045313,-2712.3,0.00035984,7]
[310278306,1704459045324,-500.0,0.00035984,7]
[310278307,1704459045333,-509.65945473,0.00035984,7]
[310278308,1704459045343,-500.0,0.00035984,7]
[310278309,1704459045353,-500.0,0.00035984,7]
[310278310,1704459045363,-500.0,0.00035984,7]
[310278311,1704459045373,-501.59955806,0.00035984,7]
[310278312,1704459045383,-500.0,0.00035984,7]
[310278313,1704459045393,-503.79984228,0.00035984,7]
[310278314,1704459045403,-2830.56,0.00035984,7]
[310278315,1704459045413,-532.44247037,0.00035984,7]
[310278316,1704459045422,-153.996853,0.00035984,2]
[310278317,1704459045431,-153.996853,0.00035984,2]
[310278318,1704459045441,-153.996853,0.00035984,2]
[310278319,1704459045451,-153.996853,0.00035984,2]
[310278320,1704459045460,-153.996853,0.00035984,2]
[310278321,1704459045470,-153.996853,0.00035984,2]
[310278322,1704459045480,-153.996853,0.00035984,2]
[310278323,1704459045489,-153.996853,0.00035984,2]
[310278324,1704459045500,-153.996853,0.00035984,2]
[310278325,1704459045511,-153.996845,0.00035984,2]
[310278326,1704459045520,-500.0,0.00035985,7]
[310278327,1704459045533,-500.0,0.00035994,7]
[310278328,1704459045542,-500.0,0.00035994,7]
[310278330,1704459045679,-500.0,0.00035995,7]
[310278332,1704459045706,-1011.98,0.00035995,7]
[310278334,1704459045716,-619.36,0.00035995,7]
[310278335,1704459045725,-500.0,0.00035995,7]
[310278336,1704459045735,-500.0,0.00035995,7]
[310278337,1704459045744,-500.0,0.00035995,7]
[310278341,1704459045754,-500.0,0.00035995,7]
[310278345,1704459045764,-500.0,0.00035995,7]
[310278349,1704459045774,-500.0,0.00035995,7]
[310278352,1704459045783,-500.0,0.00035995,7]
[310278355,1704459045792,-500.0,0.00035995,7]
[310278358,1704459045801,-563.27009293,0.00035995,7]
[310278361,1704459045810,-500.0,0.00035995,7]
[310278363,1704459045819,-500.0,0.00035995,7]
[310278367,1704459045829,-500.0,0.00035995,7]
[310278370,1704459045838,-500.0,0.00035995,7]
[310278373,1704459045849,-500.0,0.00035995,7]
[310278375,1704459045858,-500.0,0.00035995,7]
[310278377,1704459045867,-500.0,0.00035995,7]
[310278379,1704459045877,-500.0,0.00035995,7]
[310278384,1704459045885,-500.0,0.00035995,7]
[310278389,1704459045895,-500.0,0.00035995,7]
[310278393,1704459045904,-196.26009615,0.00035995,7]
[310278396,1704459045913,-500.0,0.00035995,7]
[310278399,1704459045922,-500.0,0.00035995,7]
[310278402,1704459045930,-500.0,0.00035995,7]
[310278405,1704459045939,-500.0,0.00035995,7]
[310278407,1704459045948,-500.0,0.00035995,7]
[310278412,1704459045957,-559.65,0.00035995,7]
[310278418,1704459045968,-500.0,0.00035995,7]
[310278422,1704459045977,-500.0,0.00035995,7]
[310278428,1704459045987,-500.0,0.00035995,7]
[310278431,1704459045996,-500.0,0.00035995,7]
[310278435,1704459046005,-773.11,0.00035995,7]
[310278440,1704459046016,-500.0,0.00035995,7]
[310278442,1704459046028,-500.0,0.00035995,7]
[310278447,1704459046037,-500.0,0.00035995,7]
[310278449,1704459046046,-500.0,0.00035995,7]
[310278453,1704459046055,-429.65278159,0.00035995,2]
[310278456,1704459046064,-500.0,0.00035995,7]
[310278460,1704459046074,-502.02540183,0.00035995,7]
[310278463,1704459046084,-604.56,0.00035995,7]
[310278466,1704459046093,-500.0,0.00035995,7]
[310278469,1704459046102,-500.0,0.00035995,7]
[310278471,1704459046112,-500.0,0.00035995,7]
[310278474,1704459046121,-500.0,0.00035995,7]
[310278477,1704459046131,-500.0,0.00035995,7]
[310278480,1704459046140,-511.37108406,0.00035995,7]
[310278482,1704459046149,-500.0,0.00035995,7]
[310278483,1704459046158,-500.0,0.00035995,7]
[310278485,1704459046167,-500.0,0.00035995,7]
[310278486,1704459046176,-500.0,0.00035995,7]
[310278487,1704459046185,-500.0,0.00035995,7]
[310278488,1704459046195,-500.0,0.00035995,7]
[310278490,1704459046205,-500.0,0.00035995,7]
[310278492,1704459046215,-236.41050831,0.00035995,7]
[310278494,1704459046224,-500.0,0.00035995,7]
[310278496,1704459046234,-500.0,0.00035995,7]
[310278497,1704459046243,-500.0,0.00035995,7]
[310278499,1704459046253,-605.09047325,0.00035995,7]
[310278501,1704459046263,-500.0,0.00035995,7]
[310278503,1704459046273,-500.0,0.00035995,7]
[310278504,1704459046283,-500.0,0.00035995,7]
[310278506,1704459046293,-1642.96,0.00035995,7]
[310278507,1704459046302,-509.82,0.00035995,7]
[310278508,1704459046312,-500.0,0.00035995,7]
[310278509,1704459046323,-500.0,0.00035995,7]
[310278511,1704459046333,-500.0,0.00035995,7]
[310278513,1704459046342,-529.47366652,0.00035995,7]
[310278515,1704459046352,-500.0,0.00035995,7]
[310278516,1704459046361,-500.0,0.00035995,7]
[310278518,1704459046371,-500.0,0.00035995,7]
[310278520,1704459046381,-982.7,0.00035995,7]
[310278521,1704459046390,-500.0,0.00035995,7]
[310278522,1704459046400,-500.0,0.00035995,7]
[310278523,1704459046410,-500.0,0.00035995,7]
[310278525,1704459046420,-500.0,0.00035995,7]
[310278527,1704459046429,-500.0,0.00035995,7]
[310278529,1704459046439,-500.0,0.00035995,7]
[310278531,1704459046449,-500.0,0.00035995,7]
[310278533,1704459046459,-511.94485865,0.00035995,7]
[310278536,1704459046469,-503.54003314,0.00035995,7]
[310278539,1704459046480,-504.94134702,0.00035995,7]
[310278542,1704459046490,-500.0,0.00035995,7]
[310278545,1704459046500,-500.0,0.00035995,7]
[310278547,1704459046510,-500.0,0.00035995,7]
[310278549,1704459046519,-202.19447337,0.00035995,7]
[310278551,1704459046529,-500.0,0.00035995,7]
[310278553,1704459046539,-500.0,0.00035995,7]
[310278555,1704459046549,-500.0,0.00035995,7]
[310278557,1704459046558,-1418.34,0.00035995,7]
[310278559,1704459046568,-1000.0,0.00035995,2]
[310278561,1704459046579,-500.0,0.00035995,7]
[310278563,1704459046588,-500.0,0.00035995,7]
[310278565,1704459046598,-500.0,0.00035995,7]
[310278568,1704459046607,-500.0,0.00035995,7]
[310278570,1704459046616,-5499.999999,0.00036,2]
[310278573,1704459046626,-1000.0,0.00036,36]
[310278576,1704459046636,-500.0,0.00036005,7]
[310278579,1704459046645,-500.0,0.00036015,7]
[310278581,1704459046655,-577.15709095,0.00036015,7]
[310278584,1704459046664,-600.71389256,0.00036015,2]
[310278586,1704459046674,-500.0,0.00036015,7]
[310278587,1704459046683,-500.0,0.00036015,7]
[310278588,1704459046693,-500.0,0.00036015,7]
[310278589,1704459046702,-500.0,0.00036015,7]
[310278590,1704459046712,-500.0,0.00036015,7]
[310278591,1704459046721,-500.0,0.00036015,7]
[310278592,1704459046730,-500.0,0.00036015,7]
[310278593,1704459046740,-500.0,0.00036015,7]
[310278594,1704459046750,-500.0,0.00036015,7]
[310278595,1704459046760,-500.61246768,0.00036015,7]
[310278596,1704459046770,-464.89440432,0.00036015,7]
[310278597,1704459046779,-500.0,0.00036015,7]
[310278598,1704459046789,-500.0,0.00036015,7]
[310278599,1704459046801,-500.0,0.00036015,7]
[310278600,1704459046837,-500.0,0.00036015,7]
[310278601,1704459046850,-500.0,0.00036015,7]
[310278602,1704459046859,-500.0,0.00036015,7]
[310278603,1704459046868,-500.0,0.00036015,7]
[310278604,1704459046877,-500.0,0.00036015,7]
[310278605,1704459046886,-500.0,0.00036015,7]
[310278606,1704459046896,-497.47208153,0.00036015,7]
[310278607,1704459046905,-150.0,0.00036015,7]
[310278608,1704459046914,-1000.0,0.00036015,2]
[310278609,1704459046924,-174.04541562,0.00036015,7]
[310278610,1704459046934,-500.0,0.00036015,7]
[310278611,1704459046943,-500.0,0.00036015,7]
[310278612,1704459046952,-500.0,0.00036015,7]
[310278613,1704459046961,-522.0753652,0.00036015,7]
[310278614,1704459046971,-500.0,0.00036015,7]
[310278615,1704459046982,-500.0,0.00036015,7]
[310278616,1704459046992,-821.5,0.00036015,7]
[310278617,1704459047001,-601.49344923,0.00036015,7]
[310278618,1704459047011,-500.0,0.00036015,7]
[310278619,1704459047020,-500.0,0.00036015,7]
[310278620,1704459047030,-500.0,0.00036015,7]
[310278621,1704459047039,-500.0,0.00036015,7]
[310278622,1704459047049,-500.0,0.00036015,7]
[310278623,1704459047058,-500.0,0.00036015,7]
[310278624,1704459047068,-633.74643341,0.00036015,7]
[310278625,1704459047077,-500.0,0.00036015,7]
[310278626,1704459047087,-354.84517505,0.00036015,7]
[310278627,1704459047097,-500.0,0.00036015,7]
[310278628,1704459047107,-557.98806851,0.00036015,7]
[310278629,1704459047116,-500.0,0.00036015,7]
[310278630,1704459047126,-500.0,0.00036015,7]
[310278631,1704459047135,-500.0,0.00036015,7]
[310278632,1704459047145,-500.0,0.00036015,7]
[310278633,1704459047155,-500.0,0.00036015,7]
[310278634,1704459047165,-500.0,0.00036015,7]
[310278635,1704459047174,-691.5,0.00036015,7]
[310278636,1704459047183,-500.0,0.00036015,7]
[310278637,1704459047192,-567.15,0.00036015,7]
[310278638,1704459047201,-500.0,0.00036015,7]
[310278639,1704459047211,-282.08896667,0.00036015,7]
[310278640,1704459047222,-500.0,0.00036015,7]
[310278641,1704459047232,-500.0,0.00036015,7]
[310278642,1704459047241,-421.25992368,0.00036015,7]
[310278643,1704459047252,-502.91578922,0.00036015,7]
[310278644,1704459047263,-505.75189974,0.00036015,7]
[310278645,1704459047272,-500.0,0.00036015,2]
[310278646,1704459047282,-500.0,0.00036015,7]
[310278647,1704459047291,-500.0,0.00036015,7]
[310278648,1704459047301,-220.0,0.00036015,2]
[310278649,1704459047311,-500.0,0.00036015,7]
[310278650,1704459047320,-500.0,0.00036015,7]
[310278651,1704459047329,-500.0,0.00036015,7]
[310278652,1704459047339,-500.0,0.00036015,7]
[310278653,1704459047349,-500.0,0.00036015,7]
[310278654,1704459047358,-500.39403629,0.00036015,7]
[310278655,1704459047368,-500.13414524,0.00036015,2]
[310278656,1704459047378,-500.0,0.00036015,7]
[310278657,1704459047388,-851.13,0.00036015,7]
[310278658,1704459047397,-520.03574021,0.00036015,7]
[310278659,1704459047407,-500.0,0.00036015,7]
[310278660,1704459047417,-500.0,0.00036015,7]
[310278661,1704459047426,-500.0,0.00036015,7]
[310278662,1704459047436,-500.0,0.00036015,7]
[310278663,1704459047445,-500.0,0.00036015,7]
[310278664,1704459047454,-500.0,0.00036015,7]
[310278665,1704459047464,-500.0,0.00036015,7]
[310278666,1704459047475,-500.0,0.00036015,7]
[310278667,1704459047484,-507.75525626,0.00036015,7]
[310278668,1704459047495,-500.0,0.00036015,7]
[310278669,1704459047506,-590.74746481,0.00036015,7]
[310278670,1704459047517,-523.01014034,0.00036015,7]
[310278671,1704459047527,-500.0,0.00036015,7]
[310278672,1704459047536,-500.0,0.00036015,7]
[310278673,1704459047547,-500.0,0.00036015,7]
[310278674,1704459047557,-501.81500255,0.00036015,7]
[310278675,1704459047567,-500.77574628,0.00036015,7]